Cogmind - Beta 14 @@@ ROGUE MODE // 2024.09.04 @ 03:17:41 Player: cptwinky Result: Escaped! Performance ------------- Evolutions (9) 4500 Regions Visited (20) 4000 Robots Destroyed (249) 1245 Value Destroyed (11380) 11380 Prototype IDs (56) 1120 Alien Tech Used (1) 200 Bonus (9768) 9768 TOTAL SCORE: 32213 Bonus ------- High Alert Combat Kills 1286 Follower Combat Kills 3799 Network Hubs Disabled 400 Registered with UFD 300 Met Zhirov 300 Built Enhanced Grunts 300 Met R17 at Cetus 500 Win 3000 Friendly Fire -117 Cogmind --------- Core Integrity 1497/1600 Matter 212/300 Energy 649/670 System Corruption 2% Temperature Cool (11) Movement Treading (155) Location To Epsilon Eridani Parts ------- > --- POWER (3) -------- Particle Reactor Particle Reactor Light Quantum Reactor > --- PROPULSION (6) --- Centrium Heavy Treads Centrium Heavy Treads Biometal Heavy Treads > --- UTILITY (13) ----- Scrap Suit Makeshift Coolant Network Huge Storage Unit Surveybot 17 Chip Experimental Targeting Computer Transmission Jammer Layered Heavy Armor Plating Advanced Shield Generator Advanced Hacking Suite > --- WEAPON (3) ------- Enhanced Quantum Rifle Enhanced Nova Cannon Overtuned Railgun > --- INVENTORY (25) --- Scrap Suit Advanced Cooling System Advanced Coolant Injector Advanced Energy Well (500) Experimental Matter Compressor (500) Deep Structural Scanner Long-range Terrain Scanner Layered Heavy Armor Plating Centrium Medium Armor Plating Improved Component Analysis Suite Advanced System Restoration Module Dimensional Node Initializer Transdimensional Reconstructor Advanced Variable Charge Gun Quantum Rifle Railgun Overtuned Railgun Fusion Bomb Launcher Advanced Datajack CPS Tube (2) Phasing Sabre Peak State ------------ > --- POWER ------------ Particle Reactor Particle Reactor Light Quantum Reactor > --- PROPULSION ------- Centrium Heavy Treads Centrium Heavy Treads Biometal Heavy Treads > --- UTILITY ---------- Scrap Suit Makeshift Coolant Network Huge Storage Unit Long-range Terrain Scanner Surveybot 17 Chip Experimental Targeting Computer Transmission Jammer Layered Heavy Armor Plating Improved Remote Shield > --- WEAPON ----------- Quantum Rifle Enhanced Quantum Rifle Overtuned Railgun > --- INVENTORY -------- Heavy Antimatter Reactor Scrap Suit Advanced Cooling System Advanced Coolant Injector Advanced Energy Well Experimental Matter Compressor Deep Structural Scanner Layered Heavy Armor Plating Centrium Medium Armor Plating Advanced Hacking Suite Improved Component Analysis Suite Advanced System Restoration Module Dimensional Node Initializer Transdimensional Reconstructor Advanced Variable Charge Gun Quantum Rifle Enhanced Nova Cannon Railgun Fusion Bomb Launcher Advanced Datajack CPS Tube Phasing Sabre [Rating: 188] Favorites ----------- Power Subdweller Power Source Engine Subdweller Power Source Power Core Neutrino Core Reactor Quantum Reactor Propulsion Centrium Heavy Treads Treads Centrium Heavy Treads Leg Advanced Myomer Leg Wheel Overtuned Scrapsphere Utility Huge Storage Unit Device Scrap Suit Storage Huge Storage Unit Processor Surveybot 17 Chip Hackware Improved Hacking Suite Protection Centrium Medium Armor Plating Weapon Subdweller Machine Gun Energy Gun Quantum Rifle Energy Cannon Subdweller Beam Cannon Ballistic Gun Subdweller Machine Gun Ballistic Cannon Bore Cannon Launcher Long-range Missile Launcher Special Weapon CPS Tube Impact Weapon Hammer Slashing Weapon Ripper Special Melee Weapon Datajack Build | -11 -10 -10 -8 -8 -6 -6 -6 -6 -6 -5 -5 -5 -5 -4 -4 -4 -4 -3 -2 -1 ------- Run | Yrd Mat Sub Rec Scr Fac Ext Cet Arc Hub Fac Upp Upp Zhi Pro Fac Upp Upp Res Res Acc Slots Evolved 18 | . . . . . 8 . . . . 2 . . . . 2 . . 2 2 2 Power 2 | . . . . . . . . . . 1 . . . . 1 . . . . . Propulsion 4 | . . . . . 2 . . . . . . . . . . . . 2 . . Utility 11 | . . . . . 5 . . . . 1 . . . . 1 . . . 2 2 Weapon 1 | . . . . . 1 . . . . . . . . . . . . . . . Parts Attached 331 | 6 6 27 20 8 15 19 14 6 3 22 17 2 10 19 49 12 9 31 26 10 Power 36 | 1 1 2 2 1 3 2 2 . . 3 3 . 1 2 8 1 . 2 . 2 Engine 14 | 1 1 2 2 1 3 2 1 . . 1 . . . . . . . . . . Core 9 | . . . . . . . . . . 1 2 . . 1 4 1 . . . . Reactor 13 | . . . . . . . 1 . . 1 1 . 1 1 4 . . 2 . 2 Propulsion 50 | 2 3 6 9 3 3 2 3 . . 1 . . 2 1 2 2 1 7 2 1 Treads 36 | 2 3 3 4 2 3 . 3 . . 1 . . 1 1 1 1 1 7 2 1 Leg 1 | . . . . . . . . . . . . . 1 . . . . . . . Wheel 13 | . . 3 5 1 . 2 . . . . . . . . 1 1 . . . . Hover . | . . . . . . . . . . . . . . . . . . . . . Flight . | . . . . . . . . . . . . . . . . . . . . . Utility 124 | 1 2 3 4 1 4 8 2 2 2 10 7 . 3 13 17 6 4 16 15 4 Device 67 | . 1 2 2 . 2 1 . 1 1 5 3 . 1 3 10 5 3 11 13 3 Storage 9 | 1 1 1 2 . . . . . . . . . 2 . . . . 2 . . Processor 7 | . . . . . 1 1 . 1 . 1 . . . 1 . . . 2 . . Hackware 3 | . . . . . . . . . 1 . . . . . 1 . . . . 1 Protection 38 | . . . . 1 1 6 2 . . 4 4 . . 9 6 1 1 1 2 . Artifact . | . . . . . . . . . . . . . . . . . . . . . Weapon 121 | 2 . 16 5 3 5 7 7 4 1 8 7 2 4 3 22 3 4 6 9 3 Energy Gun 16 | 1 . . . . . . 1 . 1 . . . . . 5 1 1 3 3 . Energy Cannon 9 | . . 7 1 . . . . . . . . . . . . . . . . 1 Ballistic Gun 44 | 1 . 4 1 2 3 4 3 1 . 2 4 1 1 3 6 1 2 2 2 1 Ballistic Cannon 9 | . . . . . . 1 2 . . 3 . . . . 3 . . . . . Launcher 14 | . . . . . . . . . . 2 3 1 1 . 2 1 1 . 2 1 Special Weapon 3 | . . . . . . . 1 . . . . . . . 2 . . . . . Impact Weapon 8 | . . 5 1 . 1 1 . . . . . . . . . . . . . . Slashing Weapon 14 | . . . 1 1 1 1 . 1 . 1 . . 1 . 4 . . 1 2 . Piercing Weapon . | . . . . . . . . . . . . . . . . . . . . . Special Melee Weapon 4 | . . . 1 . . . . 2 . . . . 1 . . . . . . . Unidentified Prototypes 15 | . . . . . . . 4 . . . 1 . 4 . 1 . . 4 1 . Parts Lost 25 | . 1 3 . . . 2 . . . . . . . 3 11 . 3 1 . 1 Power 7 | . . . . . . 1 . . . . . . . 1 4 . . 1 . . Propulsion 3 | . 1 2 . . . . . . . . . . . . . . . . . . Utility 10 | . . 1 . . . 1 . . . . . . . 1 4 . 2 . . 1 Weapon 5 | . . . . . . . . . . . . . . 1 3 . 1 . . . Highest Loss Streak 3 | . 1 1 . . . 2 . . . . . . . 2 3 . 3 1 . 1 To Critical Strikes 1 | . . . . . . . . . . . . . . . 1 . . . . . Average Slot Usage (%) 86 | . 98 95 85 96 75 91 91 86 86 81 76 76 74 80 81 83 83 79 74 70 Engine 8 | . 14 14 13 13 12 18 14 . . . . . . . . . . . . . Core 1 | . . . . . . . . . . 2 3 5 5 2 4 10 10 1 . . Reactor 3 | . . . . . . . 1 5 6 5 7 5 5 8 9 5 5 10 13 12 Treads 13 | . 28 20 14 16 21 11 8 5 6 10 11 11 10 11 6 5 5 11 10 12 Wheel 7 | . . 7 13 11 . 10 11 12 13 . . . . . 3 4 5 4 2 . Device 11 | . 12 10 9 7 10 11 11 12 14 10 11 11 9 13 14 20 20 15 17 16 Storage 7 | . 14 13 5 14 5 5 5 5 6 5 5 5 5 5 5 5 5 4 4 4 Processor 4 | . . . . . 2 5 5 5 6 8 11 11 11 11 10 10 10 9 8 8 Protection 3 | . . . . 4 5 8 11 12 6 7 5 5 5 6 5 . 4 4 4 4 Energy Gun 1 | . 14 1 . . . . . . 5 . . . . . 2 2 9 9 7 5 Energy Cannon 2 | . . 11 3 . . . . . . . . . . . . . . . . . Ballistic Gun 12 | . 14 14 14 16 9 14 7 6 13 12 16 15 11 16 9 11 5 4 3 6 Slashing Weapon 1 | . . . 8 2 4 . . . . . . . . . . . . . . . Special Melee Weapon 1 | . . . . 8 . . . 4 . . . . 3 . . . . . . . Peak Build Rating 188 | 6 8 20 21 23 69 69 113 113 107 130 131 125 128 132 138 132 137 159 176 188 Average Rating 69 | 5 7 12 17 17 55 64 92 106 106 124 126 124 124 124 127 130 135 151 169 184 On Entrance 90 | . 6 8 20 16 23 68 67 113 107 106 130 125 125 128 122 127 131 137 155 176 Naked Turns . | . . . . . . . . . . . . . . . . . . . . . Heaviest Build 217 | 14 20 217 216 100 152 152 164 162 140 153 155 148 156 154 171 161 160 186 189 189 Greatest Support 235 | 40 40 40 20 40 88 88 16 16 16 160 160 160 160 160 160 20 20 80 235 235 Greatest Overweight (x) 44 | . . 10 10 6 1 18 10 44 8 8 . . . . 8 8 7 9 9 . Average Overweight (x) 3 | . . 2 3 4 1 8 9 17 8 . . . . . 4 7 7 7 3 . Largest Inventory Capacity 35 | 8 10 35 35 25 25 25 25 25 25 25 25 25 25 25 25 25 25 25 25 25 Average Capacity 21 | 7 9 16 15 25 25 25 25 25 25 25 25 25 25 25 25 25 25 25 25 25 Most Carried 35 | 7 10 35 35 25 25 25 25 25 25 25 25 25 25 25 25 25 25 25 25 24 Average Carried 20 | 3 9 14 12 24 21 24 24 24 25 24 24 25 24 22 22 24 23 23 24 23 Final Capacity 35 | 8 10 35 25 25 25 25 25 25 25 25 25 25 25 25 25 25 25 25 25 25 Final Carried 35 | 7 10 35 25 25 25 25 24 25 25 25 25 25 25 22 25 25 23 25 25 23 Class Distribution -------------------- 19% | Scavenger-Skirmisher 17% | Mutant 14% | Scavenger-Mutant 13% | Commander-Mutant 10% | Scavenger-Tank 7% | Hauler-Mutant 4% | Scavenger-Scrapper 3% | Scavenger-Gunner 3% | Cobbler-Tank 3% | Commander-Tank Dominant Class ---------------- Mutant | -10/Materials Scavenger-Mutant | -10/Subcaves Mutant | -8/Recycling Commander-Mutant | -8/Scraptown Cobbler-Mutant | -6/Factory Cobbler-Tank | -6/Extension Commander-Tank | -6/Cetus Scavenger-Mutant | -6/Archives Scavenger-Tank | -6/Hub_04(d) Scavenger-Tank | -5/Factory Scavenger-Skirmisher | -5/Upper Caves Scavenger-Skirmisher | -5/Upper Caves Scavenger-Mutant | -5/Zhirov Scavenger-Scrapper | -4/Proximity Caves Scavenger-Tank | -4/Factory Scavenger-Skirmisher | -4/Upper Caves Scavenger-Skirmisher | -4/Upper Caves Scavenger-Gunner | -3/Research Scavenger-Tank | -2/Research Scavenger-Tank | -1/Access Resources | -11 -10 -10 -8 -8 -6 -6 -6 -6 -6 -5 -5 -5 -5 -4 -4 -4 -4 -3 -2 -1 ----------- Run | Yrd Mat Sub Rec Scr Fac Ext Cet Arc Hub Fac Upp Upp Zhi Pro Fac Upp Upp Res Res Acc Matter Collected 12642 | 256 284 309 3151 569 45 559 207 60 . 1058 631 200 390 1063 1689 320 154 1033 431 233 Remotely . | . . . . . . . . . . . . . . . . . . . . . Salvage Created 13917 | 24 488 594 1659 311 45 386 62 67 . 1331 820 132 93 1641 3159 173 180 1096 1376 280 Parts 594 | 2 32 39 64 1 3 26 7 6 . 51 43 3 2 59 141 9 8 31 64 3 Haulers Intercepted 9 | . 2 . . . . . . . . 2 . . . . 3 . . 2 . . Recyclers Shooed 6 | . 1 . . . . 1 . . . . . . . . 3 . . 1 . . Parts Field Recycled 15 | . . . . . . 15 . . . . . . . . . . . . . . Retrieved Matter 81 | . . . . . . 81 . . . . . . . . . . . . . . Parts Self-Destructed 173 | . . 11 . 1 . . . . . . 46 11 1 71 . 16 16 . . . Prevented 3 | . . . . . . . . . . . . 3 . . . . . . . . Kills | -11 -10 -10 -8 -8 -6 -6 -6 -6 -6 -5 -5 -5 -5 -4 -4 -4 -4 -3 -2 -1 ------- Run | Yrd Mat Sub Rec Scr Fac Ext Cet Arc Hub Fac Upp Upp Zhi Pro Fac Upp Upp Res Res Acc Combat Hostiles Destroyed 200 | . 10 15 6 . 1 6 1 . . 26 19 6 . 21 41 6 6 12 21 3 Melee 3 | . . . . . 1 . . . . . . . . . 2 . . . . . Guns 130 | . 10 6 4 . . 6 1 . . 13 12 3 . 20 23 3 2 11 14 2 Cannons 22 | . . 9 2 . . . . . . 3 . . . . 8 . . . . . AOE 44 | . . . . . . . . . . 10 7 3 . 1 8 3 4 . 7 1 Classes Destroyed 22 | 1 5 2 3 . 1 . . . . 4 2 1 . 1 1 . . 1 . . Worker 4 | . . . . . . . . . . . . . . . 2 . . 1 . 1 Builder 9 | . . . 3 . . 2 . . . . . . . . 3 . . . 1 . Tunneler 5 | 1 1 . . . . . . . . . . . . . 1 . . . 1 1 Hauler 9 | . 2 . . . . . . . . 2 . . . . 3 . . 2 . . Recycler 15 | . 1 . 10 . . . . . . . . . . . 4 . . . . . Mechanic 3 | . . . . . . . . . . 1 . . . 1 1 . . . . . Operator 8 | . 2 . . . . . . 2 . 1 . . . . 3 . . . . . Watcher 3 | . . . . . . . . . . 1 . . . . 1 . . . 1 . Swarmer 47 | . 6 3 . . . . . . . 10 7 . . . 9 4 4 . 4 . Grunt 69 | . 4 . . . . 1 . . . 8 6 . . 8 22 . . 6 11 3 Brawler 3 | . . . . . . . . . . 1 . . . 1 1 . . . . . Duelist 7 | . . . . . . . . . . . 1 . . 5 . . . 1 . . Protector 2 | . . . 2 . . . . . . . . . . . . . . . . . Sentry 22 | . . . 4 . . 5 . . . 3 2 1 . 2 2 . . 1 2 . Hunter 10 | . . . . . . . . . . . . . . 2 3 . 2 3 . . Programmer 18 | . . . . . 1 . . . . 3 2 . . 2 4 2 . . 4 . Behemoth 2 | . . . . . . . . . . 1 . . . 1 . . . . . . Cetus Guard 1 | . . . . . . . 1 . . . . . . . . . . . . . Executioner 1 | . . . . . . . . . . . . . . . . . . 1 . . Cobbler 1 | . . 1 . . . . . . . . . . . . . . . . . . Subdweller 12 | . . 12 . . . . . . . . . . . . . . . . . . Assembled 5 | . . . . . . . . . . . . 5 . . . . . . . . Mutant 1 | . . . . . . . . . . . 1 . . . . . . . . . Best Kill Streak 10 | 1 6 3 3 . 1 3 1 1 . 10 9 1 . 8 8 4 4 4 5 3 Combat Bots Only 9 | . 5 3 2 . 1 2 1 . . 9 9 1 . 8 6 4 4 4 5 2 Max Kills in Single Turn 6 | 1 2 1 1 . 1 1 1 1 . 5 2 1 . 2 6 3 4 1 4 2 Gunslinging 1 | . . . . . . . . . . . . . . 1 . . . . . . Exploded 5 | . . . . . . . . . . 5 2 1 . 1 5 3 4 . 3 1 Melee 1 | . . . . . 1 . . . . . . . . . 1 . . . . . Uniques/NPCs Destroyed . | . . . . . . . . . . . . . . . . . . . . . Combat | -11 -10 -10 -8 -8 -6 -6 -6 -6 -6 -5 -5 -5 -5 -4 -4 -4 -4 -3 -2 -1 -------- Run | Yrd Mat Sub Rec Scr Fac Ext Cet Arc Hub Fac Upp Upp Zhi Pro Fac Upp Upp Res Res Acc Hostile Shots Fired 1277 | . 62 53 14 . 1 167 21 . 2 101 48 9 . 128 330 45 65 99 100 32 Missed 389 | . 17 15 4 . . 75 6 . 1 21 9 1 . 35 98 11 25 28 30 13 Damage Taken 17141 | . 500 685 148 . 44 1254 284 . 85 1741 866 221 . 2469 3796 631 678 1581 1397 761 Core 1250 | . 61 88 . . 15 67 56 . 52 50 74 . . 115 222 44 53 153 97 103 Absorbed by Shields 1832 | . . . . . 10 . 136 . . . . . . . 831 228 58 24 292 253 Reduced by Siege Mode 378 | . . . . . . . . . . 63 12 . . 22 121 24 . 81 55 . Regen/Repaired (Parts) 3377 | . 116 . . . . . . . . 466 . . 10 60 1705 10 . 989 21 . Core Remaining (%) 79 | 100 . . . 40 . . . . 77 . . . . 76 . . 72 88 93 93 Volleys Fired 628 | 2 33 49 20 . . 44 6 . 15 56 42 12 . 69 130 20 13 57 48 12 Largest 3 | 2 2 2 2 . . 3 3 . 1 3 3 3 . 3 3 3 3 3 3 3 Hottest 240 | 70 70 110 108 . . 113 145 . 240 127 102 102 . 99 240 159 221 221 221 225 Shots Fired 1566 | 4 64 90 38 . . 130 14 . 15 156 104 28 . 202 323 51 32 161 122 32 Gun 1363 | 4 64 61 19 . . 119 7 . 15 105 99 24 . 200 261 50 31 161 117 26 Cannon 171 | . . 29 19 . . 11 5 . . 47 . . . . 56 . . . . 4 Launcher 28 | . . . . . . . . . . 4 5 4 . 2 4 1 1 . 5 2 Special 4 | . . . . . . . 2 . . . . . . . 2 . . . . . Kinetic 1142 | 2 33 52 19 . . 130 12 . . 152 99 24 . 200 251 44 9 57 42 16 Thermal 392 | 2 31 38 19 . . . . . 15 . . . . . 66 6 22 104 75 14 Explosive 28 | . . . . . . . . . . 4 5 4 . 2 4 1 1 . 5 2 Electromagnetic . | . . . . . . . . . . . . . . . . . . . . . Robot Hit Streak 55 | 1 13 16 8 . . 8 4 . . 16 18 11 . 12 23 18 15 18 55 7 Robot Miss Streak 5 | 1 3 1 2 . . 5 1 . . 3 4 3 . 4 5 2 5 4 5 2 Penetration Max 2 | . . . . . . . . . . 1 1 1 . 2 2 . . 1 . 2 Secondary Targets 21 | . 2 . . . . 1 . . . . 3 . . 7 2 . 1 1 3 1 Max Gunslinging Chain 1 | . 1 . . . . 1 . . . . 1 . . 1 1 . 1 1 1 1 Shots Hit Robots 1103 | 2 47 63 61 13 1 73 11 4 . 105 48 14 6 138 214 39 15 123 103 23 Core Hits 504 | 1 26 26 20 4 1 26 4 . . 54 34 10 1 56 114 12 10 41 52 12 Critical Kills 49 | . . . 1 . . 2 1 . . 9 9 . . 5 15 . . 2 5 . Critical Parts Destroyed 68 | . . . . . . 2 1 . . 15 3 1 . 10 28 . . 4 3 1 Critical Strikes 137 | 1 3 1 1 . . 5 2 . . 32 12 1 . 18 45 1 . 6 8 1 Burn 6 | 1 3 1 . . . . . . . . . . . . 1 . . . . . Destroy 129 | . . . . . . 4 2 . . 32 12 1 . 18 44 1 . 6 8 1 Blast 1 | . . . . . . 1 . . . . . . . . . . . . . . Smash 1 | . . . 1 . . . . . . . . . . . . . . . . . Melee Attacks 114 | . . 28 37 13 4 3 . 4 . 1 . . 6 . 12 . . 1 5 . Impact 33 | . . 28 3 . 1 1 . . . . . . . . . . . . . . Slashing 70 | . . . 29 12 3 2 . 2 . 1 . . 3 . 12 . . 1 5 . Piercing . | . . . . . . . . . . . . . . . . . . . . . Sneak Attacks 30 | . . . 20 1 . . . 4 . . . . 3 . 2 . . . . . Combat Hostiles 4 | . . . 4 . . . . . . . . . . . . . . . . . Follow-up Attacks . | . . . . . . . . . . . . . . . . . . . . . Damage Inflicted 39301 | 25 632 1056 2668 821 44 1690 227 205 . 4012 2290 608 250 4918 8488 1404 799 3377 4459 1328 Guns 26103 | 25 620 645 229 . . 1513 119 . . 2335 1506 356 . 4690 5632 1047 404 3377 2870 735 Cannons 2823 | . . 411 324 . . 177 108 . . 736 . . . . 883 . . . . 184 Explosions 6430 | . . . . . . . . . . 927 784 252 . 228 1504 357 395 . 1586 397 Melee 3885 | . . . 2115 821 44 . . 205 . . . . 250 . 450 . . . . . Ramming 60 | . 12 . . . . . . . . 14 . . . . 19 . . . 3 12 Kinetic 21438 | . 335 560 229 . . 1690 227 . . 3071 1506 356 . 4690 5213 1017 112 1112 902 418 Thermal 7560 | 25 285 496 324 . . . . . . . . . . . 1374 30 292 2265 1968 501 Explosive 6358 | . . . . . . . . . . 927 784 252 . 228 1432 357 395 . 1586 397 Electromagnetic . | . . . . . . . . . . . . . . . . . . . . . Impact 173 | . . . 173 . . . . . . . . . . . . . . . . . Slashing 3712 | . . . 1942 821 44 . . 205 . . . . 250 . 450 . . . . . Piercing . | . . . . . . . . . . . . . . . . . . . . . Highest Corruption 9 | . . . . . . . . . . 1 1 . . 9 2 3 3 . 4 2 Average Corruption 3 | . . . . . . . . . . 1 1 . . 8 1 2 3 . 1 1 Corruption Purged 4 | . . . . . . . . . . . 1 . . . 2 1 . . . . Corruption Blocked . | . . . . . . . . . . . . . . . . . . . . . Effects 88 | . . . . . . . . . . 4 . . . 40 5 13 14 . 10 2 Message Errors 18 | . . . . . . . . . . 2 . . . 9 . 4 3 . . . Matter Fused 11 | . . . . . . . . . . . . . . 4 . 1 5 . 1 . Heat Flow Errors 11 | . . . . . . . . . . . . . . 3 1 2 2 . 2 1 Energy Discharges 14 | . . . . . . . . . . . . . . 6 1 1 1 . 4 1 Parts Fused 1 | . . . . . . . . . . . . . . . 1 . . . . . Data Loss (minor) 8 | . . . . . . . . . . 1 . . . 3 1 1 . . 2 . Data Loss (major) 6 | . . . . . . . . . . . . . . 2 1 2 . . 1 . Misfires 9 | . . . . . . . . . . 1 . . . 4 . 1 3 . . . Alerts 5 | . . . . . . . . . . . . . . 4 . 1 . . . . Weapon Failures 5 | . . . . . . . . . . . . . . 5 . . . . . . Overload Shots 4 | . . . . . . . . . 2 . . . . . 2 . . . . . Overflow Damage 1441 | . . . 644 199 . . . 139 . 60 14 . 45 . 189 . . . 150 1 Projectiles 22 | . . . . . . . . . . 20 . . . . 1 . . . . 1 Explosions 244 | . . . . . . . . . . 40 14 . . . 40 . . . 150 . Melee 1175 | . . . 644 199 . . . 139 . . . . 45 . 148 . . . . . Knockbacks 8 | . . . . . . 1 . . . 2 . . . . 5 . . . . . Impact . | . . . . . . . . . . . . . . . . . . . . . Kinetic 8 | . . . . . . 1 . . . 2 . . . . 5 . . . . . Secondary . | . . . . . . . . . . . . . . . . . . . . . Self-Inflicted Damage 285 | . . . . . . . . . . 29 31 . . . 202 . . . 23 . Shots 9 | . . . . . . . . . . 2 1 . . . 4 . . . 2 . Rammed 7 | . 2 . . . . . . . . 2 . . . . 2 . . . . 1 Targets Rammed 8 | . 2 . . . . . . . . 2 . . . . 2 . . . 1 1 Kicked . | . . . . . . . . . . . . . . . . . . . . . Crushed 1 | . . . . . . . . . . . . . . . . . . . 1 . Highest Temperature 336 | 18 45 . 175 . . 336 99 . 152 243 165 45 . 74 140 113 149 193 74 132 Average Temperature 57 | 10 13 . 68 . . 73 48 . 92 109 34 17 . 34 19 46 81 80 8 132 Received Heat Transfer 2673 | . 120 84 45 . 9 618 26 . . 288 192 45 . 180 703 30 . 111 183 39 Effects 1 | . . . . . . . . . . 1 . . . . . . . . . . Interference 1 | . . . . . . . . . . 1 . . . . . . . . . . Siege Activations 27 | . . . . . . . . . . 3 1 . . 2 10 2 1 5 2 1 Total Turns 583 | . . . . . . . . . . 76 23 . . 36 134 28 14 91 176 5 Longest Duration 135 | . . . . . . . . . . 39 23 . . 26 29 18 14 34 135 5 Robots Corrupted . | . . . . . . . . . . . . . . . . . . . . . Combat Hostiles . | . . . . . . . . . . . . . . . . . . . . . Parts Fried 2 | . . . 2 . . . . . . . . . . . . . . . . . Impact Corruptions 2 | . . . 2 . . . . . . . . . . . . . . . . . Robots Melted 2 | . . . . . . . . . . . . . . . . . . 2 . . Combat Hostiles 1 | . . . . . . . . . . . . . . . . . . 1 . . Parts Melted 26 | . 2 2 . . . . . . . 5 . . . . 4 . . 11 2 . Heat Transferred 11320 | 148 1073 1184 426 . . . . . . . . . . . 2236 37 370 2923 2405 518 Parts Sabotaged . | . . . . . . . . . . . . . . . . . . . . . Parts Stolen . | . . . . . . . . . . . . . . . . . . . . . Parts Stripped . | . . . . . . . . . . . . . . . . . . . . . Power Chain Reactions . | . . . . . . . . . . . . . . . . . . . . . Alert | -11 -10 -10 -8 -8 -6 -6 -6 -6 -6 -5 -5 -5 -5 -4 -4 -4 -4 -3 -2 -1 ------- Run | Yrd Mat Sub Rec Scr Fac Ext Cet Arc Hub Fac Upp Upp Zhi Pro Fac Upp Upp Res Res Acc Peak Influence 1184 | 5 160 . 75 . 30 491 334 307 149 813 . . . . 1184 . . 426 996 1098 Initial 597 | . 3 . . . . 9 103 133 . 44 . . . . 65 . . 123 103 597 Average 200 | 1 73 . 25 . 17 163 234 129 63 499 . . . . 474 . . 247 506 845 Maximum Alert Level 4 | . . . . . . 2 1 1 . 3 . . . . 4 . . 2 3 3 Low Security (%) 69 | 100 100 . 100 . 100 70 55 68 100 7 . . . . 42 . . 39 20 . Level 1 12 | . . . . . . 17 44 31 . 23 . . . . 11 . . 53 17 . Level 2 8 | . . . . . . 12 . . . 50 . . . . 7 . . 7 26 21 Level 3 8 | . . . . . . . . . . 19 . . . . 31 . . . 35 78 Level 4 . | . . . . . . . . . . . . . . . 5 . . . . . Level 5 . | . . . . . . . . . . . . . . . . . . . . . High Security . | . . . . . . . . . . . . . . . . . . . . . Max Security . | . . . . . . . . . . . . . . . . . . . . . Squads Dispatched 40 | . . . . . 2 3 . . 3 4 . . . 1 13 . . 8 4 2 Investigation 10 | . . . . . 1 2 . . 1 1 . . . . 2 . . 1 1 1 Extermination 8 | . . . . . 1 . . . 1 1 . . . . 3 . . . 2 . Reinforcement 19 | . . . . . . 1 . . 1 1 . . . . 7 . . 7 1 1 Assault 2 | . . . . . . . . . . . . . . 1 1 . . . . . Garrison 1 | . . . . . . . . . . 1 . . . . . . . . . . Intercept . | . . . . . . . . . . . . . . . . . . . . . Searches Triggered . | . . . . . . . . . . . . . . . . . . . . . Construction Impeded 3 | . . . . . . 1 . . . . . . . . 2 . . . . . Haulers Reinforced 6 | . . . . . . . . . . . . . . . 2 . . 3 . 1 Active Scanning Responses . | . . . . . . . . . . . . . . . . . . . . . Cargo Convoy Interrupts . | . . . . . . . . . . . . . . . . . . . . . Stealth | -11 -10 -10 -8 -8 -6 -6 -6 -6 -6 -5 -5 -5 -5 -4 -4 -4 -4 -3 -2 -1 --------- Run | Yrd Mat Sub Rec Scr Fac Ext Cet Arc Hub Fac Upp Upp Zhi Pro Fac Upp Upp Res Res Acc Distress Signals 17 | . . . . . . 4 2 . . 1 . . . . 2 . . 7 1 . Communications Jammed 222 | . . . . . . . . . . . . . . . . . . . 142 80 Distress Signals 217 | . . . . . . . . . . . . . . . . . . . 142 75 Times Spotted 321 | . 15 19 7 . 1 33 10 1 4 31 24 8 . 25 61 7 6 18 34 17 Peak Tracking Total 9 | . 5 4 3 . 1 4 5 1 2 9 4 3 . 9 5 4 4 5 7 7 Tactical Retreats 13 | . . . . . . 3 . . 1 . 2 . . . 4 . . 1 2 . Traps | -11 -10 -10 -8 -8 -6 -6 -6 -6 -6 -5 -5 -5 -5 -4 -4 -4 -4 -3 -2 -1 ------- Run | Yrd Mat Sub Rec Scr Fac Ext Cet Arc Hub Fac Upp Upp Zhi Pro Fac Upp Upp Res Res Acc Traps Triggered 5 | . 2 1 . . . . . . . . . . . . 1 . . . . 1 Indirectly . | . . . . . . . . . . . . . . . . . . . . . Trap Hack Attempts . | . . . . . . . . . . . . . . . . . . . . . Triggered . | . . . . . . . . . . . . . . . . . . . . . Disarmed . | . . . . . . . . . . . . . . . . . . . . . Reprogrammed . | . . . . . . . . . . . . . . . . . . . . . Reused . | . . . . . . . . . . . . . . . . . . . . . Traps Extracted . | . . . . . . . . . . . . . . . . . . . . . Installed . | . . . . . . . . . . . . . . . . . . . . . Triggered 1 | . . . . . . . . . . . . 1 . . . . . . . . Most Traps Carried 3 | . . 3 3 . . . . . . . . . . . . . . . . . Machines | -11 -10 -10 -8 -8 -6 -6 -6 -6 -6 -5 -5 -5 -5 -4 -4 -4 -4 -3 -2 -1 ---------- Run | Yrd Mat Sub Rec Scr Fac Ext Cet Arc Hub Fac Upp Upp Zhi Pro Fac Upp Upp Res Res Acc Machines Disabled 30 | . . 1 2 . 1 2 . 1 1 4 3 . . 2 7 . 1 1 2 2 Max in Single Turn 4 | . . 1 1 . 1 1 . . . 1 1 . . 1 4 . 1 1 2 . Garrison Access 3 | . . . . . 1 . . . . . . . . . 1 . . . 1 . Network Hub 2 | . . . . . . . . . 2 . . . . . . . . . . . Energy Cycler 1 | . . . . . . 1 . . . . . . . . . . . . . . Machines Repaired . | . . . . . . . . . . . . . . . . . . . . . Machines Dismantled . | . . . . . . . . . . . . . . . . . . . . . Machines Sabotaged 1 | . . . . . . . . . 1 . . . . . . . . . . . Overloaded Fab Kills . | . . . . . . . . . . . . . . . . . . . . . Hacking | -11 -10 -10 -8 -8 -6 -6 -6 -6 -6 -5 -5 -5 -5 -4 -4 -4 -4 -3 -2 -1 --------- Run | Yrd Mat Sub Rec Scr Fac Ext Cet Arc Hub Fac Upp Upp Zhi Pro Fac Upp Upp Res Res Acc Machines Accessed 86 | . 10 2 9 2 5 17 1 . 4 10 2 1 4 . 5 1 1 3 6 3 Terminals 50 | . 7 . 5 . 1 17 1 . 4 6 . 1 . . 1 . . 2 3 2 Fabricators 3 | . . . . . 1 . . . . 1 . . . . . . . . 1 . Repair Stations 7 | . 1 . . . 1 . . . . 2 . . . . 2 . . 1 . . Recycling Units 11 | . 2 . 4 . 1 . . . . 1 . . . . 1 . . . 1 1 Scanalyzers . | . . . . . . . . . . . . . . . . . . . . . Garrison Access 3 | . . . . . 1 . . . . . . . . . 1 . . . 1 . Total Hacks 277 | . 19 5 32 21 7 34 2 . 14 40 6 1 17 . 31 1 1 19 21 6 Successful 149 | . 8 5 18 21 4 13 . . 4 14 6 1 17 . 17 1 1 10 6 3 Failed 128 | . 11 . 14 . 3 21 2 . 10 26 . . . . 14 . . 9 15 3 Catastrophic 31 | . 2 . 1 . 1 5 2 . 3 11 . . . . 2 . . 1 2 1 Database Lockouts . | . . . . . . . . . . . . . . . . . . . . . Manual 91 | . 12 . 22 . 1 8 1 . 10 13 . . . . 11 . . 6 6 1 Terminals 142 | . 13 . 15 . 1 34 2 . 14 22 . 1 . . 12 . . 7 16 5 Fabricators 9 | . . . . . 2 . . . . 4 . . . . . . . . 3 . Repair Stations 40 | . 2 . . . 1 . . . . 10 . . . . 15 . . 12 . . Recycling Units 31 | . 4 . 17 . 1 . . . . 4 . . . . 3 . . . 1 1 Scanalyzers . | . . . . . . . . . . . . . . . . . . . . . Garrison Access 4 | . . . . . 2 . . . . . . . . . 1 . . . 1 . Terminal Hacks 83 | . 3 5 2 21 1 12 . . 2 3 6 1 17 . 4 1 1 1 1 2 Record 37 | . . 4 . 21 . . . . . . 5 1 5 . . . 1 . . . Part Schematic 6 | . . . . . . . . . . . . . 4 . 2 . . . . . Robot Analysis 10 | . 3 . 1 . . . . . . 2 . . 4 . . . . . . . Prototype ID Bank 5 | . . . . . . . . . . 1 . . 4 . . . . . . . Open Door 14 | . . . . . 1 10 . . . . 1 . . . . 1 . . . 1 Level Access Points 3 | . . . . . . . . . 1 . . . . . . . . . 1 1 Unreport Threat 4 | . . . . . . 2 . . . . . . . . 2 . . . . . Locate Traps 2 | . . . . . . . . . 1 . . . . . . . . 1 . . Zone Layout 1 | . . . 1 . . . . . . . . . . . . . . . . . Derelict Proto ID Bank 1 | . . 1 . . . . . . . . . . . . . . . . . . Fabricator Hacks 4 | . . . . . 1 . . . . 2 . . . . . . . . 1 . Network Status 2 | . . . . . . . . . . 1 . . . . . . . . 1 . Build 2 | . . . . . 1 . . . . 1 . . . . . . . . . . Repair Station Hacks 22 | . 2 . . . . . . . . 4 . . . . 9 . . 7 . . Scan Component 13 | . 1 . . . . . . . . 2 . . . . 6 . . 4 . . Repair 9 | . 1 . . . . . . . . 2 . . . . 3 . . 3 . . Recycling Unit Hacks 13 | . 2 . 8 . . . . . . 2 . . . . 1 . . . . . Recycle Component 3 | . . . 3 . . . . . . . . . . . . . . . . . Process 3 | . . . 2 . . . . . . 1 . . . . . . . . . . Retrieve Matter 3 | . . . 2 . . . . . . 1 . . . . . . . . . . Retrieve Components 4 | . 2 . 1 . . . . . . . . . . . 1 . . . . . Scanalyzer . | . . . . . . . . . . . . . . . . . . . . . Garrison Access Hacks 3 | . . . . . 1 . . . . . . . . . 1 . . . 1 . Seal Access 3 | . . . . . 1 . . . . . . . . . 1 . . . 1 . Unauthorized Hacks 24 | . 1 . 8 . 1 1 . . 2 3 . . . . 2 . . 2 3 1 Terminals 12 | . . . 5 . . 1 . . 2 . . . . . 1 . . 2 1 . Botnet 5 | . . . 1 . . 1 . . . . . . . . 1 . . 1 1 . Disrupt 2 | . . . . . . . . . 1 . . . . . . . . 1 . . Skim 4 | . . . 4 . . . . . . . . . . . . . . . . . Sabotage 1 | . . . . . . . . . 1 . . . . . . . . . . . Fabricators 3 | . . . . . . . . . . 2 . . . . . . . . 1 . Prioritize 1 | . . . . . . . . . . 1 . . . . . . . . . . Liberate 2 | . . . . . . . . . . 1 . . . . . . . . 1 . Repair Stations 5 | . . . . . 1 . . . . 1 . . . . 1 . . . 1 1 Recycling Units 4 | . 1 . 3 . . . . . . . . . . . . . . . . . Reject 2 | . 1 . 1 . . . . . . . . . . . . . . . . . Mask 1 | . . . 1 . . . . . . . . . . . . . . . . . Tunnel 1 | . . . 1 . . . . . . . . . . . . . . . . . Scrapoids 5 | . . . . . 1 . . . . 1 . . . . 1 . . . 1 1 Scanalyzers . | . . . . . . . . . . . . . . . . . . . . . Garrison Access . | . . . . . . . . . . . . . . . . . . . . . Data Cores Recovered 2 | . 2 . . . . . . . . . . . . . . . . . . . Used . | . . . . . . . . . . . . . . . . . . . . . Hacking Detections 57 | . 9 . 7 . 4 11 2 . 4 9 . . . . 3 . . 2 4 2 Full Trace Events 4 | . . . 1 . . 2 . . . . . . . . 1 . . . . . Feedback Events 1 | . . . . . . . . . . . . . . . 1 . . . . . Corruption 1 | . . . . . . . . . . . . . . . 1 . . . . . Feedback Blocked . | . . . . . . . . . . . . . . . . . . . . . Robot Schematics Acquired . | . . . . . . . . . . . . . . . . . . . . . Robots Built . | . . . . . . . . . . . . . . . . . . . . . Authchips . | . . . . . . . . . . . . . . . . . . . . . Time . | . . . . . . . . . . . . . . . . . . . . . Total Robot Build Rating . | . . . . . . . . . . . . . . . . . . . . . Part Schematics Acquired 6 | . . . . . . . . . . . . . 4 . 2 . . . . . Parts Built 3 | . . . . . 1 . . . . 2 . . . . . . . . . . Authchips . | . . . . . . . . . . . . . . . . . . . . . Time 203 | . . . . . 64 . . . . 139 . . . . . . . . . . Total Part Build Rating 26 | . . . . . 8 . . . . 18 . . . . . . . . . . Parts Repaired 9 | . 1 . . . . . . . . 2 . . . . 3 . . 3 . . Time 758 | . 26 . . . . . . . . 162 . . . . 270 . . 300 . . Parts Recycled 3 | . . . 3 . . . . . . . . . . . . . . . . . Recycled Matter 1021 | . . . 601 . . . . . . 420 . . . . . . . . . . Retrieved Matter 1325 | . . . 695 . . . . . . 630 . . . . . . . . . . Retrieved Components 15 | . 12 . 2 . . . . . . . . . . . 1 . . . . . Parts Scanalyzed . | . . . . . . . . . . . . . . . . . . . . . Part Schematics Acquired . | . . . . . . . . . . . . . . . . . . . . . Parts Damaged . | . . . . . . . . . . . . . . . . . . . . . Bothacking | -11 -10 -10 -8 -8 -6 -6 -6 -6 -6 -5 -5 -5 -5 -4 -4 -4 -4 -3 -2 -1 ------------ Run | Yrd Mat Sub Rec Scr Fac Ext Cet Arc Hub Fac Upp Upp Zhi Pro Fac Upp Upp Res Res Acc Used RIF Installer . | . . . . . . . . . . . . . . . . . . . . . Robots Hacked 6 | . . . . 1 . . . 2 . . . . 3 . . . . . . . Non-combat 2 | . . . . . . . . 2 . . . . . . . . . . . . Combat 4 | . . . . 1 . . . . . . . . 3 . . . . . . . Robot Hacks Applied 6 | . . . . 1 . . . 2 . . . . 3 . . . . . . . parse_system 4 | . . . . 1 . . . . . . . . 3 . . . . . . . check_alert 2 | . . . . . . . . 2 . . . . . . . . . . . . Relay Couplers Released 3 | . . . . . . . . . . . . . . . . . . . . 3 Programmers 3 | . . . . . . . . . . . . . . . . . . . . 3 Fabnet Peak Effective % . | . . . . . . . . . . . . . . . . . . . . . Robots Rewired 22 | . . . 4 . . 13 . . . . 3 . . 2 . . . . . . Allies Hacked 1 | . . . . . . . . . . . . . . . . . . . 1 . Hacks Repelled . | . . . . . . . . . . . . . . . . . . . . . Allies | -11 -10 -10 -8 -8 -6 -6 -6 -6 -6 -5 -5 -5 -5 -4 -4 -4 -4 -3 -2 -1 -------- Run | Yrd Mat Sub Rec Scr Fac Ext Cet Arc Hub Fac Upp Upp Zhi Pro Fac Upp Upp Res Res Acc Total Allies 73 | . . . 4 . 5 34 5 . . 5 3 . . 2 5 . . . 5 5 Largest Group 30 | . . . 4 4 5 30 29 23 20 5 3 3 1 1 5 1 . . 5 7 Highest-Rated Group 1203 | . . . 66 67 140 1018 1203 1164 923 238 94 93 31 47 241 47 . . 320 451 Highest-Rated Ally 159 | . . . 27 27 28 159 159 159 96 50 47 31 31 47 53 47 . . 64 67 Total Orders 12 | . . . . 5 . 4 2 . 1 . . . . . . . . . . . STAY 5 | . . . . 1 . 2 1 . 1 . . . . . . . . . . . FOLLOW 5 | . . . . 2 . 2 1 . . . . . . . . . . . . . PICKUP 2 | . . . . 2 . . . . . . . . . . . . . . . . Ally Attacks 705 | . . . . . 7 176 65 33 55 43 22 28 . 17 84 11 . . 68 96 Total Damage 14080 | . . . . . 141 2821 1317 876 1008 951 296 401 . 346 1398 240 . . 1494 2791 Kills 99 | . . . . . . 24 13 4 6 6 5 6 . 3 7 1 . . 8 16 Allies Corrupted 6 | . . . . . . . . . 6 . . . . . . . . . . . Allies Melted . | . . . . . . . . . . . . . . . . . . . . . Intel | -11 -10 -10 -8 -8 -6 -6 -6 -6 -6 -5 -5 -5 -5 -4 -4 -4 -4 -3 -2 -1 ------- Run | Yrd Mat Sub Rec Scr Fac Ext Cet Arc Hub Fac Upp Upp Zhi Pro Fac Upp Upp Res Res Acc Robot Analysis Total 10 | . 3 . 1 . . . . . . 2 . . 4 . . . . . . . Derelict Logs Recovered 16 | . . 1 . 5 . . . . . . 2 2 . 1 . 2 3 . . . Drone Launches . | . . . . . . . . . . . . . . . . . . . . . Drone Recoveries . | . . . . . . . . . . . . . . . . . . . . . Decoded 0b10 Intel 4 | . . . . . . . . . . . . . . . . . . 4 . . Emergency Access 1 | . . . . . . . . . . . . . . . . . . 1 . . Items 3 | . . . . . . . . . . . . . . . . . . 3 . . Exploration | -11 -10 -10 -8 -8 -6 -6 -6 -6 -6 -5 -5 -5 -5 -4 -4 -4 -4 -3 -2 -1 ------------- Run | Yrd Mat Sub Rec Scr Fac Ext Cet Arc Hub Fac Upp Upp Zhi Pro Fac Upp Upp Res Res Acc Turns Passed 34371 | 120 1205 4764 6114 4425 707 2095 398 1227 300 1235 1936 1388 331 1474 2047 823 1196 1187 934 465 Spaces Moved 16252 | 64 635 2336 2539 2227 221 992 186 164 157 582 1086 735 183 791 853 486 814 575 368 258 Core 47 | 5 . . . . . . . 42 . . . . . . . . . . . . Treads 6625 | 59 635 1152 7 334 221 7 . . . 518 1086 735 183 791 404 . . 2 233 258 Legs . | . . . . . . . . . . . . . . . . . . . . . Wheels 9580 | . . 1184 2532 1893 . 985 186 122 157 64 . . . . 449 486 814 573 135 . Hover . | . . . . . . . . . . . . . . . . . . . . . Flight . | . . . . . . . . . . . . . . . . . . . . . Fastest Speed 50 | 50 160 110 115 129 255 140 150 150 150 140 160 160 160 160 120 140 140 140 155 155 Average Speed 167 | 151 160 156 149 194 258 157 161 691 150 158 160 160 160 160 174 140 140 148 162 155 Slowest Speed 2250 | 160 160 610 260 360 260 255 170 2250 150 160 160 160 160 160 240 150 140 240 166 155 Overloaded Moves . | . . . . . . . . . . . . . . . . . . . . . Propulsion Burnouts . | . . . . . . . . . . . . . . . . . . . . . Robots Hopped 3 | . . . . . . . . . . 3 . . . . . . . . . . Cave-ins Triggered . | . . . . . . . . . . . . . . . . . . . . . Exploration Rate (%) 56 | 6 97 93 99 89 7 84 59 74 19 17 78 92 61 82 19 78 90 11 16 11 Regions Visited 20 Branch Regions 13 Pre-discovered Areas 11 | . . . 1 5 . . . . . . . . 3 . . . 2 . . . Known Exits Taken 9 | . . 1 . 1 1 . . . 1 1 1 . . . 1 . . 1 1 . Unknown Exits Taken 11 | 1 1 . 1 . . 1 1 1 . . . 1 1 1 . 1 1 . . . Scrap Searched 31 | . . 5 . 12 . . . . . . 4 2 . 4 . 2 2 . . . Spaces Dug 142 | . . 6 . . 1 2 . . 8 1 53 25 . . 7 1 29 1 8 . Terrain Destroyed 853 | . . 6 5 . 1 5 1 . 8 77 121 52 . 129 260 29 34 2 52 71 Melee 14 | . . 3 . . 1 2 . . . 1 . . . . 1 . . 1 5 . Projectile 354 | . . 3 5 . . 3 1 . 8 42 66 8 . 80 110 3 5 1 12 7 AOE 485 | . . . . . . . . . . 34 55 44 . 49 149 26 29 . 35 64 Terrain Rammed . | . . . . . . . . . . . . . . . . . . . . . Walls Destroyed . | . . . . . . . . . . . . . . . . . . . . . Machines Disabled . | . . . . . . . . . . . . . . . . . . . . . Actions | -11 -10 -10 -8 -8 -6 -6 -6 -6 -6 -5 -5 -5 -5 -4 -4 -4 -4 -3 -2 -1 --------- Run | Yrd Mat Sub Rec Scr Fac Ext Cet Arc Hub Fac Upp Upp Zhi Pro Fac Upp Upp Res Res Acc Total 22179 | 80 761 3308 4795 2310 351 1418 277 253 205 768 1222 927 220 932 1194 595 848 804 605 306 Wait 4217 | 2 69 810 2090 24 102 201 45 74 31 85 36 179 5 23 110 62 6 102 141 20 Move 16226 | 63 634 2335 2538 2226 220 991 185 163 156 576 1085 734 182 790 852 485 813 574 367 257 Hop 2 | . . . . . . . . . . 2 . . . . . . . . . . Pick Up 185 | 7 10 39 30 17 7 7 6 3 . 9 5 . 4 3 16 5 4 11 2 . Fast Attach 114 | 6 2 8 4 2 6 5 7 1 . 7 7 . 5 6 17 3 . 16 9 3 Attach 66 | . 2 3 4 2 6 3 1 1 . 5 2 . 2 7 12 2 4 3 4 3 Detach 64 | . . 3 4 4 2 1 4 2 . 4 5 . 4 6 10 . . 6 6 3 Swap 152 | . 2 16 12 4 3 11 6 4 3 10 8 2 4 6 20 7 5 12 13 4 Drop 221 | . 7 17 56 18 2 9 17 1 . 11 10 . 8 5 13 11 3 22 8 3 Fire 628 | 2 33 49 20 . . 44 6 . 15 56 42 12 . 69 130 20 13 57 48 12 Melee 113 | . . 28 37 13 3 3 . 4 . 1 . . 6 . 12 . . 1 5 . Ram . | . . . . . . . . . . . . . . . . . . . . . Kick . | . . . . . . . . . . . . . . . . . . . . . Crush 8 | . 2 . . . . . . . . 2 . . . . 2 . . . 1 1 Escape Stasis . | . . . . . . . . . . . . . . . . . . . . . Rewire 182 | . . . . . . 143 . . . . 22 . . 16 . . . . 1 . Trap . | . . . . . . . . . . . . . . . . . . . . . Miscellaneous 1 | . . . . . . . . . . . . . . 1 . . . . . . Route ------- -11/Scrapyard -10/Materials (discovered 6 exits: [*Mat x3] / [*Min x2] / *Sub) -10/Subcaves (discovered 3 exits: [*Mat x2] / *Rec) -8/Recycling (discovered 2 exits: *Fac / *Scr) -8/Scraptown (discovered 2 exits: *Fac x2) -6/Factory (discovered 8 exits: Fac x4 / Low x2 / *Ext x2) -6/Extension (discovered 2 exits: *Fac / *Cet) -6/Cetus (discovered 2 exits: *Fac / [*Arc]) -6/Archives (discovered 2 exits: *Hub x2) -6/Hub_04(d) (discovered 4 exits: *Fac x4) -5/Factory -5/Upper Caves -5/Upper Caves (discovered 2 exits: *Fac / *Zhi) -5/Zhirov -4/Proximity Caves -4/Factory (discovered 3 exits: *Res / *Upp x2) -4/Upper Caves -4/Upper Caves (discovered 2 exits: *Res / [*War]) -3/Research (discovered 2 exits: *Res x2) -2/Research (discovered 5 exits: *Acc x3 / Tes x2) -1/Access To Epsilon Eridani History --------- Turn | Location | Event 3 | -11/Scrapyard | Discovered new exit (range 15) 121 | -11/Scrapyard | Entered Materials 121 | -10/Materials | Discovered new exit (range 8) 308 | -10/Materials | Build established: Mutant 348 | -10/Materials | Discovered new exit (range 5) 502 | -10/Materials | Discovered new exit (range 16) 856 | -10/Materials | Discovered new exit (range 13) 1073 | -10/Materials | Repaired Lgt. Treads 1172 | -10/Materials | Discovered new exit (range 14) 1286 | -10/Materials | Discovered new exit (range 7) 1326 | -10/Materials | Entered Subcaves 1354 | -10/Subcaves | Build established: Scavenger-Mutant 1485 | -10/Subcaves | Discovered new exit (range 11) 1667 | -10/Subcaves | Build established: Mutant 1847 | -10/Subcaves | A swath of the cavern ceiling suddenly collapsed 2016 | -10/Subcaves | Build established: Scavenger-Mutant 2510 | -10/Subcaves | Visited 4L-MR0's lab 2535 | -10/Subcaves | Found Power Bank 2858 | -10/Subcaves | Identified exit to Recycling 3006 | -10/Subcaves | Discovered new exit (range 8) 3327 | -10/Subcaves | Core integrity fell below 50% 3413 | -10/Subcaves | Shifting Twisted Machinery released Multitool 3544 | -10/Subcaves | Shifting Twisted Machinery released Battle Rifle 4264 | -10/Subcaves | Visited Clippyterm 4268 | -10/Subcaves | Learned Research machine intel 4432 | -10/Subcaves | Curiously followed by a Cobbler waking with a query about "LVR3C" 4520 | -10/Subcaves | Shifting Twisted Machinery released Spk. Treads 4799 | -10/Subcaves | Disturbed a concealed Subdweller 5110 | -10/Subcaves | Build established: Hauler-Mutant 5171 | -10/Subcaves | Curiously followed by a Cobbler waking with a query about "LVR3C" 6090 | -10/Subcaves | Entered Recycling 6872 | -8/Recycling | Discovered new exit (range 12) 7741 | -8/Recycling | Build established: Mutant 12145 | -8/Recycling | Scanned before Scraplab entrance 12168 | -8/Recycling | Discovered new exit (range 11) 12174 | -8/Recycling | Entered Scraplab 12204 | -8/Recycling | Entered Scraptown 12204 | -8/Scraptown | Accompanied by 4 allies 12428 | -8/Scraptown | Build established: Commander-Mutant 12448 | -8/Scraptown | Scanned Subdweller tech in exchange for log data 12451 | -8/Scraptown | Learned Factory emergency access door positions 12455 | -8/Scraptown | Learned Factory stockpile data 12456 | -8/Scraptown | Learned Research garrison access intel 12458 | -8/Scraptown | Learned location of Armory (-4) 12591 | -8/Scraptown | Discovered new exit (range 13) 12698 | -8/Scraptown | Visited Comm Corps 12768 | -8/Scraptown | Visited Bundlers 12859 | -8/Scraptown | Visited Spacefarers 12946 | -8/Scraptown | Visited TADAMA 12983 | -8/Scraptown | Visited Awakened 13000 | -8/Scraptown | Visited Cave Peace 13060 | -8/Scraptown | Visited Cyclists 13391 | -8/Scraptown | Visited UFD Registry 13391 | -8/Scraptown | Registered with UFD as "Fissionpod" 13426 | -8/Scraptown | Entered Cyclist Reading Room 13531 | -8/Scraptown | Visited Science Testing Area 13561 | -8/Scraptown | Visited Curators Association 13701 | -8/Scraptown | Visited Research Penetration Think Tank 13741 | -8/Scraptown | Visited DA-N13 Charitable Foundation 13762 | -8/Scraptown | Found DCF Scrap (29 items) 13795 | -8/Scraptown | Visited Junk Repository 13841 | -8/Scraptown | Visited Abandonware Association 13871 | -8/Scraptown | Learned abandonware demo "TRNCOAT.EXE" 13871 | -8/Scraptown | Learned abandonware demo "POISON.EXE" 14005 | -8/Scraptown | Delivered Scrap Shield to a Scientist 14216 | -8/Scraptown | Visited Derelict Rescue Squad 14229 | -8/Scraptown | Found DRS Beacon 14473 | -8/Scraptown | Visited Cartography Club 14504 | -8/Scraptown | Found Surveybot 17 Chip 14762 | -8/Scraptown | Learned location of Warlord (-4) 14762 | -8/Scraptown | Learned location of Extension (-6) 14762 | -8/Scraptown | Learned 16 Factory zone layouts 14762 | -8/Scraptown | Learned 24 Factory zone layouts 14762 | -8/Scraptown | Learned 4 Access zone layouts 14762 | -8/Scraptown | Learned 4 Storage zone layouts 14762 | -8/Scraptown | Learned 16 Lower Caves zone layouts 14762 | -8/Scraptown | Learned 8 Upper Caves zone layouts 14762 | -8/Scraptown | Learned 24 Upper Caves zone layouts 14762 | -8/Scraptown | Learned location of 3 exits from Factory 14762 | -8/Scraptown | Learned location of 2 exits from Research 14762 | -8/Scraptown | Identified exit to Factory 14823 | -8/Scraptown | Found Deep Structural Scanner 15389 | -8/Scraptown | Found Scrap Suit 16629 | -8/Scraptown | Entered Factory 16629 | -6/Factory | Accompanied by 4 allies 16629 | -6/Factory | Evolved 8 slots: Propulsion x2, Utility x5, Weapon x1 16630 | -6/Factory | Identified exit to Factory 16630 | -6/Factory | Identified exit to Lower Caves 16631 | -6/Factory | Identified exit to Extension 16634 | -6/Factory | Attached Power Bank, gained temporary slots: Power x3 16797 | -6/Factory | Fabricated Fusion Bomb Launcher? 16933 | -6/Factory | Build established: Cobbler-Mutant 17089 | -6/Factory | Lost 3 allies 17255 | -6/Factory | Discovered exit to Extension (range 6) 17317 | -6/Factory | Scrapoids reinforcements arrived? 17336 | -6/Factory | Entered Extension 17336 | -6/Extension | Accompanied by 5 allies 17646 | -6/Extension | Build established: Cobbler-Tank 17966 | -6/Extension | Spotted B-75 Beast 18069 | -6/Extension | Rescued a captive Derelict 18070 | -6/Extension | Rescued a captive Derelict 18117 | -6/Extension | Rescued a captive Derelict 18118 | -6/Extension | Rescued a captive Derelict 18150 | -6/Extension | Rescued a captive Derelict 18279 | -6/Extension | Rescued a captive Derelict 18281 | -6/Extension | Rescued a captive Derelict 18450 | -6/Extension | Found Scrap Suit 18627 | -6/Extension | Allies destroyed B-75 Beast 18644 | -6/Extension | Spotted B-75 Beast 18655 | -6/Extension | Allies destroyed B-75 Beast 18714 | -6/Extension | Rescued a captive Derelict 18715 | -6/Extension | Rescued a captive Derelict 18766 | -6/Extension | Rescued a captive Derelict 18767 | -6/Extension | Rescued a captive Derelict 18818 | -6/Extension | Rescued a captive Derelict 18894 | -6/Extension | Rescued a captive Derelict 18895 | -6/Extension | Rescued a captive Derelict 18905 | -6/Extension | Rescued a captive Derelict 18905 | -6/Extension | Rescued a captive Derelict 19062 | -6/Extension | Rescued a captive Derelict 19120 | -6/Extension | Energy Cycler disabled 19120 | -6/Extension | Rescued a captive Derelict 19120 | -6/Extension | Rescued a captive Derelict 19121 | -6/Extension | Rescued a captive Derelict 19122 | -6/Extension | Rescued a captive Derelict 19124 | -6/Extension | Rescued a captive Derelict 19345 | -6/Extension | Discovered exit to Factory (range 10) 19346 | -6/Extension | Build established: Commander-Tank 19346 | -6/Extension | Discovered new exit (range 6) 19369 | -6/Extension | Rescued A7 19431 | -6/Extension | Entered Cetus 19431 | -6/Cetus | Accompanied by 29 allies (A7) 19436 | -6/Cetus | Acquired a Cetus Manufacturing Module code from A7 19452 | -6/Cetus | Spotted Cetus Guard 19452 | -6/Cetus | Spotted Cetus Guard 19460 | -6/Cetus | Spotted Cetus Guard 19466 | -6/Cetus | Spotted Cetus Guard 19471 | -6/Cetus | Allies destroyed Cetus Guard 19476 | -6/Cetus | Allies destroyed Cetus Guard 19478 | -6/Cetus | Allies destroyed Cetus Guard 19484 | -6/Cetus | Allies destroyed Cetus Guard 19507 | -6/Cetus | Lost 8 allies 19575 | -6/Cetus | Started Cetus Manufacturing Module 19599 | -6/Cetus | Discovered new exit (range 16) 19600 | -6/Cetus | Manufactured an Enhanced Grunt 19625 | -6/Cetus | Manufactured an Enhanced Grunt 19644 | -6/Cetus | Spotted Cetus Guard 19645 | -6/Cetus | Spotted Cetus Guard 19648 | -6/Cetus | Spotted Cetus Guard 19648 | -6/Cetus | Spotted Cetus Guard 19650 | -6/Cetus | Manufactured an Enhanced Grunt 19651 | -6/Cetus | Allies destroyed Cetus Guard 19657 | -6/Cetus | Destroyed Cetus Guard 19662 | -6/Cetus | Allies destroyed Cetus Guard 19664 | -6/Cetus | Allies destroyed Cetus Guard 19670 | -6/Cetus | Discovered exit to Factory (range 16) 19675 | -6/Cetus | Manufactured an Enhanced Grunt 19698 | -6/Cetus | Met Revision 17 19700 | -6/Cetus | Manufactured an Enhanced Grunt 19829 | -6/Cetus | Entered Archives 19829 | -6/Archives | Accompanied by 23 allies (A7) 19951 | -6/Archives | Discovered new exit (range 16) 19978 | -6/Archives | Discovered new exit (range 16) 20247 | -6/Archives | Build established: Scavenger-Mutant 21056 | -6/Archives | Entered Hub_04(d) 21056 | -6/Hub_04(d) | Accompanied by 20 allies 21235 | -6/Hub_04(d) | Network Hub disabled 21269 | -6/Hub_04(d) | Network Hub disabled 21346 | -6/Hub_04(d) | Lost 20 allies 21356 | -6/Hub_04(d) | Entered Factory 21356 | -5/Factory | Evolved 2 slots: Power x1, Utility x1 21357 | -5/Factory | Identified exit to Upper Caves 21420 | -5/Factory | Spotted B-75 Beast 21493 | -5/Factory | Garrison activated, responded to threat 21496 | -5/Factory | Destroyed B-75 Beast 21498 | -5/Factory | Repaired Centrium Medium Armor Plating? 21732 | -5/Factory | Destroyed 9 combat bots 21759 | -5/Factory | Build established: Scavenger-Tank 22125 | -5/Factory | Repaired Centrium Medium Armor Plating? 22262 | -5/Factory | Scrapoids reinforcements arrived? 22308 | -5/Factory | Found Scrap Suit 22376 | -5/Factory | Found Scrap Suit 22413 | -5/Factory | Fabricated Lgt. Quantum Reactor? 22591 | -5/Factory | Entered Upper Caves 22591 | -5/Upper Caves | Accompanied by 2 allies 22592 | -5/Upper Caves | Identified exit to Upper Caves 22593 | -5/Upper Caves | UFD Scientist delivered a prototype 22596 | -5/Upper Caves | Found Prototype Protection 22596 | -5/Upper Caves | Identified Enh. Scrap Shield 22611 | -5/Upper Caves | Attracted the attention of an 0b10 checkpoint 22738 | -5/Upper Caves | Attacked by a delusional Derelict stockpiling parts 22902 | -5/Upper Caves | Build established: Scavenger-Skirmisher 23531 | -5/Upper Caves | Destroyed 9 combat bots 23553 | -5/Upper Caves | Learned Research trap positions 23553 | -5/Upper Caves | Learned Extension emergency access door positions 23553 | -5/Upper Caves | Learned Factory stockpile data 23553 | -5/Upper Caves | Learned Extension security intel 23778 | -5/Upper Caves | Found Scrap Suit 23985 | -5/Upper Caves | Attacked by a delusional Derelict stockpiling Unaware 24527 | -5/Upper Caves | Entered another Upper Caves area 24527 | -5/Upper Caves | Accompanied by 3 allies 24530 | -5/Upper Caves | Discovered new exit (range 145) 24655 | -5/Upper Caves | Discovered new exit (range 18) 24775 | -5/Upper Caves | Encountered an infested base 25202 | -5/Upper Caves | Attracted the attention of an 0b10 checkpoint 25571 | -5/Upper Caves | Learned 4 Factory zone layouts 25915 | -5/Upper Caves | Entered Zhirov 25915 | -5/Zhirov | Accompanied by 1 ally 25915 | -5/Zhirov | Discovered new exit (range 3) 25946 | -5/Zhirov | Met Zhirov 25995 | -5/Zhirov | Learned location of Quarantine (-3) 25995 | -5/Zhirov | Learned location of Testing (-2) 25995 | -5/Zhirov | Learned location of Command (-1) 26005 | -5/Zhirov | Zhirov requested help retrieving the SGEMP Prototype 26031 | -5/Zhirov | Found Alien Artifact 26031 | -5/Zhirov | Identified Integrated Dissipator 26031 | -5/Zhirov | Installed Integrated Dissipator, increased core heat dissipation (+20) 26183 | -5/Zhirov | Found Alien Artifact 26246 | -5/Zhirov | Entered Proximity Caves 26246 | -4/Proximity Caves | Accompanied by 1 ally 26248 | -4/Proximity Caves | Attracted the attention of an 0b10 checkpoint 26389 | -4/Proximity Caves | Activated DRS Beacon 26627 | -4/Proximity Caves | Attracted the attention of an 0b10 outpost 26689 | -4/Proximity Caves | Destroyed 8 combat bots 27063 | -4/Proximity Caves | Build established: Scavenger-Scrapper 27237 | -4/Proximity Caves | Learned 4 Research zone layouts 27306 | -4/Proximity Caves | Discovered new exit (range 11) 27341 | -4/Proximity Caves | Spotted B-86 Titan 27372 | -4/Proximity Caves | Destroyed B-86 Titan 27720 | -4/Proximity Caves | Entered Factory 27720 | -4/Factory | Evolved 2 slots: Power x1, Utility x1 27721 | -4/Factory | Identified exit to Upper Caves 27809 | -4/Factory | Discovered new exit (range 20) 27879 | -4/Factory | Repaired Centrium Heavy Treads? 28035 | -4/Factory | Repaired Centrium Medium Armor Plating? 28377 | -4/Factory | Build established: Scavenger-Tank 28545 | -4/Factory | Repaired Centrium Heavy Treads 28755 | -4/Factory | Build established: Scavenger-Scrapper 29013 | -4/Factory | Lost 3 parts (1p1u1w) 29057 | -4/Factory | Lost 3 parts (2p1w) 29319 | -4/Factory | Scrapoid reinforcements arrived 29378 | -4/Factory | Build established: Scavenger-Tank 29551 | -4/Factory | Found Scrap Suit 29720 | -4/Factory | First assault squad dispatched 29739 | -4/Factory | Found Scrap Suit 29767 | -4/Factory | Entered Upper Caves 29767 | -4/Upper Caves | Accompanied by 1 ally 29861 | -4/Upper Caves | Spotted B-86 Titan 29886 | -4/Upper Caves | Allies destroyed B-86 Titan 30041 | -4/Upper Caves | Found DCF Scrap (16 items) 30244 | -4/Upper Caves | Build established: Scavenger-Skirmisher 30469 | -4/Upper Caves | Discovered new exit (range 20) 30573 | -4/Upper Caves | Learned Research stockpile data 30590 | -4/Upper Caves | Entered another Upper Caves area 30631 | -4/Upper Caves | Discovered new exit (range 21) 30843 | -4/Upper Caves | Lost 3 parts (2u1w) 30895 | -4/Upper Caves | Found Alien Artifact 31011 | -4/Upper Caves | Encountered a Warlord checkpoint 31361 | -4/Upper Caves | Discovered new exit (range 19) 31779 | -4/Upper Caves | Learned Research security intel 31786 | -4/Upper Caves | Entered Research 31786 | -3/Research | Evolved 2 slots: Propulsion x2 31787 | -3/Research | Identified exit to Research 31789 | -3/Research | Loaded intel: 99 trap records 31792 | -3/Research | Loaded intel: 99 machine locations 31793 | -3/Research | Loaded intel: 4 garrison access locations 31986 | -3/Research | Revision forces began assault on 0b10 32081 | -3/Research | Build established: Scavenger-Gunner 32089 | -3/Research | Found Prototype Processor 32100 | -3/Research | Identified Spectral Analyzer 32486 | -3/Research | Research terminal network offline 32547 | -3/Research | Repaired Centrium Heavy Treads 32693 | -3/Research | Repaired Broken Centrium Heavy Treads 32750 | -3/Research | Repaired Adv. Cooling System 32857 | -3/Research | Spotted Executioner 32865 | -3/Research | Build established: Scavenger-Skirmisher 32886 | -3/Research | Destroyed Executioner 32895 | -3/Research | Found Prototype Device 32895 | -3/Research | Identified Adv. Kinecellerator 32904 | -3/Research | Found Prototype Processor 32904 | -3/Research | Identified Exp. Targeting Computer 32973 | -3/Research | Entered another Research area 32973 | -2/Research | Evolved 2 slots: Utility x2 32974 | -2/Research | Identified exit to Testing 33368 | -2/Research | Scrapoid reinforcements arrived 33430 | -2/Research | Build established: Scavenger-Tank 33512 | -2/Research | Found Scrap Suit 33581 | -2/Research | Identified exit to Access 33731 | -2/Research | P-80 Master assimilated allied 02R17-D 33825 | -2/Research | Build established: Scavenger-Skirmisher 33907 | -2/Research | Entered Access 33907 | -1/Access | Accompanied by 2 allies 33907 | -1/Access | Evolved 2 slots: Utility x2 33967 | -1/Access | Scrapoid reinforcements arrived 34133 | -1/Access | Identified exit to Surface 34349 | -1/Access | Lost 3 allies 34372 | *** | Escaped! Last Messages --------------- 34330_ System corrupted: Heat flow error (+165). 34330_ H-81 Overseer call for reinforcements jammed. 34331_ Activated siege mode. 34332_ H-81 Overseer call for reinforcements jammed. 34333_ H-81 Overseer critical meltdown. 34335_ 01A22-D cannibalizes Corrupted Mak. Coolant Network to repair Mak. Coolant Network. 34335_ The unstable cave ceiling collapses. 34336_ 01A22-D cannibalizes Corrupted Lgt. Antimatter Reactor to repair Lgt. Antimatter Reactor. 34336_ The unstable cave ceiling collapses. 34338_ 01A22-D cannibalizes Corrupted Scrap Suit to repair Mak. Coolant Network. 34340_ Ended siege mode. 34343_ The unstable cave ceiling collapses. 34344_ Slug penetrates P-80 Master. 34347_ Destroyed Gamma Rifle. 34349_ P-80 Master destroyed. 34358_ The unstable cave ceiling collapses. 34365_ The Access Shell folds into the floor. Map ----- +----------------------------------------------------+ | ??????### %# #??????????????????????????? | | ????????# #? #??????????????????????????? | | "????????# #?? " ????????????????????????? | | "?????????# #??? # ?????????????????????????? | | ??????????# #????#####??????????????????????????? | | ??????????# #???????????????????????????????????? | | ??????????# #???????????????????????????????????? | | ??????????# #???????????????????????????????????? | | ########??# #???????????????????????????????????? | | ?# #???????????????????????????????????? | | ?# #???????????????????????????????????? | | ?"""" # #???????????????????????????????????? | | ?"""" # #???????????????????????????????????? | | ?"""" + #???????????????????????????????????? | | ?"""" # #???????????????????????????????????? | | ?"""" # #???????????????????????????????????? | | ?# #???????????????????????????????????? | | ?# #???????????????????????????????????? | | ??# #???????????????????????????????????? | | ??# #???????????????????????????????????? | | ???# #?????#""""""""""#??????????????????? | | #######???# #?????# #??????????????????? | | ??????????# #?????# #??????????????????? | | ########### #?????# #??????????????????? | | # = # #?????# "" #??????????????????? | | # # #?????# "@ #??????????????????? | | # " # #?????# #??????????????????? | | # """ + #?????# #??????????????????? | | # """ # #?????# #??????????????????? | | # " # #????## ##??????#??????????? | | # # #????# #????? #??????????? | | # # #????##"" s ##???? #??????????? | | ########### #?????#"" #???? #??????????? | | ??????????# #?????#"" #???!! ##?????????? | | ??????????# #?????#T ###!!! "#?????????? | | ??????????#! #?????#""% !!! #?????????? | | ??????????# =#?????#"" # =#[ #??????? | | ??????????#[%#######"" % !]! !%! #?????? | | ??????????#% %|=RR !=% !!! #?????? | | ??????????# [ %! % #?????? | | ????##########/############## #?????? | | ????# #??????????? ## ""###??????? | | ????# #??????????? # # #???????? | | ????# #??????????? # # ##?????????? | | ????# #???????????# # ## ##??????????? | | ????# #????????????#?###??#???????????? | | ????# !! #???????????????????????????????? | | ????# !! " #???????????????????????????????? | | ????# !! """ #???????????????????????????????? | | ????# """ #???????????????????????????????? | +----------------------------------------------------+ Best States ------------- Heat Dissipation 182 Coolant Potential 100 Energy Generation 61 Energy Capacity 820 Matter Stores 300 Matter Capacity 600 Sight Range 22 Terrain Scan Range 24 Terrain Scan Density 1210 Jamming Range 12 Armor Coverage 1600 Weapon Cycling 20 Evasion (%) 40 Targeting Accuracy 12 Melee Accuracy 8 Recoil Reduction 6 Offensive Hacking 14 Item Schematics ----------------- Assault Drone Bay | -5/Zhirov | Free Exp. Heat Sink | -5/Zhirov | Free Exp. Optical Array | -5/Zhirov | Free Imp. Arc Thrower | -5/Zhirov | Free Adv. Transmission Jammer | -4/Factory | Hacked Adv. Component Analysis Suite | -4/Factory | Hacked Robot Schematics ------------------ None Fabricated ------------ Fusion Bomb Launcher | x1 | -6/Factory | Preloaded Lgt. Quantum Reactor | x2 | -5/Factory | Preloaded Alien Tech Used ----------------- Integrated Dissipator Achievements -------------- None Challenges ------------ None Game ------ Seed FieldProtonLaser Manual? 0 Play Time 02:58:29 Cumulative 1667.0 hours Start 2024.09.02 @ 23:26:20 End 2024.09.04 @ 03:17:41 Sessions 5 Manual Loads 0 Difficulty Rogue Special Mode None Game No. 1137 Rogue 1133 Adventurer 4 Explorer 0 Win Type 0 Total 211 Types 158/11/15/9/2/1/3/8/4 Lore% 98 Gallery% 97 Achievement% 98 Wizard Run 0 Options --------- Layout 2 ASCII 0 Keyboard 1 Movement Vi Keybinds 0 Fullscreen 0 Font 24/Terminus Map View 59x48 Zoom Use 0% Tactical HUD 1 Map Filters NONE Filters NONE Steam 1 RUN: 937c144f-d595-4653-a344-1435c35974ca